[Event "Titled Tuesday Blitz April 4 Late 2023"]
[White "Krasteva, Beloslava"]
[Black "Veiga, Jose Francisco R P Neves"]
[WhiteFideId "2922029"]
[BlackFideId "1930087"]
[WhiteElo "2187"]
[BlackElo "2320"]
[Result "1-0"]
[Round "09"]
[TimeControl "180+2"]
[Date "2023.04.04"]
[WhiteClock "0:00:10"]
[BlackClock "0:01:13"]

1. d4 {[%clk 0:02:33]}  d6 {[%clk 0:02:47]} 2. e4 {[%clk 0:02:32]}  g6 {[%clk 0:02:47]} 3. Bd3 {[%clk 0:02:31]}  Bg7 {[%clk 0:02:48]} 4. c3 {[%clk 0:02:31]}  Nc6 {[%clk 0:02:48]} 5. f4 {[%clk 0:02:24]}  e5 {[%clk 0:02:47]} 6. d5 {[%clk 0:02:21]}  Nce7 {[%clk 0:02:45]} 7. Nf3 {[%clk 0:02:18]}  exf4 {[%clk 0:02:40]} 8. Bxf4 {[%clk 0:02:18]}  Nh6 {[%clk 0:02:40]} 9. O-O {[%clk 0:02:16]}  O-O {[%clk 0:02:40]} 10. h3 {[%clk 0:02:11]}  f5 {[%clk 0:02:40]} 11. Qd2 {[%clk 0:01:34]}  fxe4 {[%clk 0:02:39]} 12. Bxe4 {[%clk 0:01:34]}  Nhf5 {[%clk 0:02:36]} 13. g4 {[%clk 0:01:28]}  g5 {[%clk 0:02:29]} 14. Nxg5 {[%clk 0:01:21]}  Nh4 {[%clk 0:02:22]} 15. Bxh7+ {[%clk 0:01:18]}  Kh8 {[%clk 0:02:18]} 16. Na3 {[%clk 0:00:58]}  Neg6 {[%clk 0:02:17]} 17. Be3 {[%clk 0:00:49]}  Bd7 {[%clk 0:02:11]} 18. Bxg6 {[%clk 0:00:46]}  Nxg6 {[%clk 0:02:09]} 19. Nf7+ {[%clk 0:00:44]}  Rxf7 {[%clk 0:02:10]} 20. Rxf7 {[%clk 0:00:45]}  Be8 {[%clk 0:01:55]} 21. Rff1 {[%clk 0:00:34]}  Qh4 {[%clk 0:01:54]} 22. Bd4 {[%clk 0:00:32]}  Ne5 {[%clk 0:01:41]} 23. Rae1 {[%clk 0:00:17]}  Bg6 {[%clk 0:01:39]} 24. Qf2 {[%clk 0:00:16]}  Qxh3 {[%clk 0:01:25]} 25. Qh2 {[%clk 0:00:16]}  Qxh2+ {[%clk 0:01:26]} 26. Kxh2 {[%clk 0:00:17]}  Nxg4+ {[%clk 0:01:27]} 27. Kg3 {[%clk 0:00:17]}  Ne5 {[%clk 0:01:27]} 28. Rh1+ {[%clk 0:00:13]}  Kg8 {[%clk 0:01:28]} 29. Nb5 {[%clk 0:00:12]}  Rf8 {[%clk 0:01:21]} 30. Nxc7 {[%clk 0:00:10]}  Rf3+ {[%clk 0:01:21]} 31. Kg2 {[%clk 0:00:10]}  Rd3 {[%clk 0:01:19]} 32. Ne6 {[%clk 0:00:09]}  Bf6 {[%clk 0:01:17]} 33. Nf4 {[%clk 0:00:08]}  Rd2+ {[%clk 0:01:18]} 34. Kg3 {[%clk 0:00:06]}  Bf5 {[%clk 0:01:13]} 35. Re2 {[%clk 0:00:07]}  Rxe2 {[%clk 0:01:08]} 36. Nxe2 {[%clk 0:00:08]}  Kf7 {[%clk 0:01:05]} 37. Rf1 {[%clk 0:00:08]}  Kg6 {[%clk 0:01:04]} 38. Nf4+ {[%clk 0:00:07]}  Kf7 {[%clk 0:01:05]} 39. Ne6 {[%clk 0:00:07]}  Bxe6 {[%clk 0:01:05]} 40. dxe6+ {[%clk 0:00:08]}  Kxe6 {[%clk 0:01:06]} 41. Kf4 {[%clk 0:00:07]}  a6 {[%clk 0:01:04]} 42. Bxe5 {[%clk 0:00:07]}  Bxe5+ {[%clk 0:01:04]} 43. Ke4 {[%clk 0:00:07]}  d5+ {[%clk 0:01:04]} 44. Kd3 {[%clk 0:00:07]}  Kd6 {[%clk 0:01:05]} 45. Rh1 {[%clk 0:00:07]}  Kc5 {[%clk 0:01:04]} 46. Rh7 {[%clk 0:00:08]}  b5 {[%clk 0:01:04]} 47. Rh6 {[%clk 0:00:08]}  a5 {[%clk 0:01:04]} 48. a3 {[%clk 0:00:07]}  a4 {[%clk 0:01:05]} 49. Rh5 {[%clk 0:00:06]}  Bf6 {[%clk 0:01:04]} 50. Rh7 {[%clk 0:00:06]}  Be5 {[%clk 0:01:03]} 51. Rb7 {[%clk 0:00:06]}  Kc6 {[%clk 0:01:02]} 52. Rf7 {[%clk 0:00:05]}  Kc5 {[%clk 0:01:03]} 53. Rf5 {[%clk 0:00:06]}  Bg7 {[%clk 0:01:01]} 54. Kc2 {[%clk 0:00:06]}  Kc4 {[%clk 0:01:01]} 55. Rh5 {[%clk 0:00:06]}  Kc5 {[%clk 0:00:59]} 56. Rh4 {[%clk 0:00:06]}  Be5 {[%clk 0:00:59]} 57. Rg4 {[%clk 0:00:07]}  d4 {[%clk 0:00:56]} 58. Rg5 {[%clk 0:00:05]}  Kd6 {[%clk 0:00:50]} 59. cxd4 {[%clk 0:00:04]}  Bxd4 {[%clk 0:00:51]} 60. Rxb5 {[%clk 0:00:04]}  Kc6 {[%clk 0:00:51]} 61. Rh5 {[%clk 0:00:04]}  Bc5 {[%clk 0:00:52]} 62. Rh4 {[%clk 0:00:04]}  Kb5 {[%clk 0:00:53]} 63. Rg4 {[%clk 0:00:04]}  Bd6 {[%clk 0:00:53]} 64. Re4 {[%clk 0:00:04]}  Bf8 {[%clk 0:00:52]} 65. Re3 {[%clk 0:00:04]}  Bg7 {[%clk 0:00:52]} 66. Rf3 {[%clk 0:00:03]}  Be5 {[%clk 0:00:51]} 67. Rf5 {[%clk 0:00:03]}  Kc4 {[%clk 0:00:52]} 68. Rxe5 {[%clk 0:00:04]}  Kd4 {[%clk 0:00:52]} 69. Re6 {[%clk 0:00:05]}  Kc4 {[%clk 0:00:53]} 70. Ra6 {[%clk 0:00:05]}  Kb5 {[%clk 0:00:54]} 71. Ra8 {[%clk 0:00:05]}  Kb6 {[%clk 0:00:54]} 72. b3 {[%clk 0:00:06]}  Kb5 {[%clk 0:00:55]} 73. bxa4+ {[%clk 0:00:05]}  Kb6 {[%clk 0:00:56]} 74. Kb3 {[%clk 0:00:06]}  Kb7 {[%clk 0:00:57]} 75. Rh8 {[%clk 0:00:06]}  Kb6 {[%clk 0:00:58]} 76. Kb4 {[%clk 0:00:06]}  Ka6 {[%clk 0:00:58]} 77. a5 {[%clk 0:00:07]}  Ka7 {[%clk 0:00:59]} 78. Kb5 {[%clk 0:00:08]}  Kb7 {[%clk 0:00:59]} 79. a6+ {[%clk 0:00:08]}  Ka7 {[%clk 0:01:00]} 80. Rh7+ {[%clk 0:00:08]}  Kb8 {[%clk 0:01:01]} 81. Kb6 {[%clk 0:00:09]}  Kc8 {[%clk 0:01:02]} 82. Rh8+ {[%clk 0:00:09]}  Kd7 {[%clk 0:01:03]} 83. a7 {[%clk 0:00:09]}  Kd6 {[%clk 0:01:03]} 84. a8=Q {[%clk 0:00:10]}  Ke5 {[%clk 0:01:03]} 85. Qe8+ {[%clk 0:00:10]}  Kd4 {[%clk 0:01:04]} 86. Qd7+ {[%clk 0:00:09]}  Kc3 {[%clk 0:01:05]} 87. Qc6+ {[%clk 0:00:10]}  Kb2 {[%clk 0:01:06]} 88. Qb5+ {[%clk 0:00:10]}  Ka2 {[%clk 0:01:07]} 89. Rh2+ {[%clk 0:00:10]}  Kxa3 {[%clk 0:01:07]} 90. Qa5+ {[%clk 0:00:10]}  Kb3 {[%clk 0:01:08]} 91. Qb5+ {[%clk 0:00:10]}  Kc3 {[%clk 0:01:09]} 92. Qc5+ {[%clk 0:00:09]}  Kd3 {[%clk 0:01:10]} 93. Rh3+ {[%clk 0:00:09]}  Ke4 {[%clk 0:01:10]} 94. Qc4+ {[%clk 0:00:09]}  Kf5 {[%clk 0:01:10]} 95. Rh5+ {[%clk 0:00:09]}  Kg6 {[%clk 0:01:10]} 96. Qg4+ {[%clk 0:00:09]}  Kf7 {[%clk 0:01:11]} 97. Rf5+ {[%clk 0:00:09]}  Ke6 {[%clk 0:01:12]} 98. Qg6+ {[%clk 0:00:09]}  Ke7 {[%clk 0:01:12]} 99. Rf7+ {[%clk 0:00:10]}  Ke8 {[%clk 0:01:13]} 100. Qg8# {[%clk 0:00:10]} 1-0


[Site "https://www.chess.com"]

[Event "Titled Tuesday Blitz April 4 Late 2023"]
[White "Kim, Sergey"]
[Black "liwadas82"]
[WhiteFideId "13700570"]
[WhiteElo "2518"]
[BlackElo "2472"]
[Result "1/2-1/2"]
[Round "09"]
[TimeControl "180+2"]
[Date "2023.04.04"]
[WhiteClock "0:00:11"]
[BlackClock "0:00:04"]

1. d4 {[%clk 0:03:00]}  Nf6 {[%clk 0:02:58]} 2. c4 {[%clk 0:03:01]}  e6 {[%clk 0:02:59]} 3. Nc3 {[%clk 0:03:01]}  Bb4 {[%clk 0:02:59]} 4. Qc2 {[%clk 0:03:01]}  O-O {[%clk 0:02:58]} 5. a3 {[%clk 0:03:01]}  Bxc3+ {[%clk 0:02:58]} 6. Qxc3 {[%clk 0:03:02]}  Ne4 {[%clk 0:02:59]} 7. Qc2 {[%clk 0:03:01]}  f5 {[%clk 0:03:00]} 8. Nf3 {[%clk 0:03:01]}  b6 {[%clk 0:02:49]} 9. g3 {[%clk 0:03:01]}  Bb7 {[%clk 0:02:49]} 10. Bg2 {[%clk 0:03:01]}  Nf6 {[%clk 0:02:45]} 11. O-O {[%clk 0:03:01]}  Be4 {[%clk 0:02:45]} 12. Qc3 {[%clk 0:03:00]}  Nc6 {[%clk 0:02:42]} 13. b3 {[%clk 0:03:00]}  Qe7 {[%clk 0:02:34]} 14. Bb2 {[%clk 0:02:59]}  a6 {[%clk 0:02:34]} 15. Bh3 {[%clk 0:02:57]}  b5 {[%clk 0:02:25]} 16. Nd2 {[%clk 0:02:56]}  bxc4 {[%clk 0:02:20]} 17. bxc4 {[%clk 0:02:54]}  Nd8 {[%clk 0:01:55]} 18. f3 {[%clk 0:02:50]}  Bb7 {[%clk 0:01:44]} 19. a4 {[%clk 0:02:50]}  d6 {[%clk 0:01:39]} 20. Bg2 {[%clk 0:02:48]}  Rb8 {[%clk 0:01:38]} 21. e4 {[%clk 0:02:46]}  Nc6 {[%clk 0:01:28]} 22. e5 {[%clk 0:02:38]}  dxe5 {[%clk 0:01:26]} 23. dxe5 {[%clk 0:02:38]}  Nd7 {[%clk 0:01:09]} 24. Ba3 {[%clk 0:02:37]}  Qf7 {[%clk 0:01:01]} 25. Bxf8 {[%clk 0:02:34]}  Qxf8 {[%clk 0:01:02]} 26. f4 {[%clk 0:02:29]}  Qc5+ {[%clk 0:01:02]} 27. Kh1 {[%clk 0:02:28]}  a5 {[%clk 0:00:51]} 28. Nb3 {[%clk 0:02:15]}  Qa7 {[%clk 0:00:49]} 29. Rad1 {[%clk 0:02:03]}  Nc5 {[%clk 0:00:47]} 30. Nxc5 {[%clk 0:01:45]}  Qxc5 {[%clk 0:00:48]} 31. Rd7 {[%clk 0:01:39]}  Nb4 {[%clk 0:00:38]} 32. Bxb7 {[%clk 0:01:32]}  Rxb7 {[%clk 0:00:39]} 33. Qd4 {[%clk 0:01:23]}  Qc6+ {[%clk 0:00:34]} 34. Kg1 {[%clk 0:01:22]}  Nc2 {[%clk 0:00:23]} 35. Rd8+ {[%clk 0:01:18]}  Kf7 {[%clk 0:00:23]} 36. Qd7+ {[%clk 0:01:18]}  Qxd7 {[%clk 0:00:23]} 37. Rxd7+ {[%clk 0:01:19]}  Kg6 {[%clk 0:00:23]} 38. c5 {[%clk 0:01:12]}  Ne3 {[%clk 0:00:21]} 39. Rc1 {[%clk 0:01:01]}  Nd5 {[%clk 0:00:20]} 40. Rd1 {[%clk 0:00:48]}  Rb4 {[%clk 0:00:18]} 41. h4 {[%clk 0:00:47]}  Rxa4 {[%clk 0:00:16]} 42. h5+ {[%clk 0:00:46]}  Kh6 {[%clk 0:00:15]} 43. R1xd5 {[%clk 0:00:41]}  exd5 {[%clk 0:00:15]} 44. Rxc7 {[%clk 0:00:41]}  Re4 {[%clk 0:00:13]} 45. c6 {[%clk 0:00:39]}  d4 {[%clk 0:00:13]} 46. Rd7 {[%clk 0:00:39]}  d3 {[%clk 0:00:12]} 47. Rxd3 {[%clk 0:00:35]}  Rc4 {[%clk 0:00:12]} 48. Rd6+ {[%clk 0:00:34]}  Kxh5 {[%clk 0:00:12]} 49. e6 {[%clk 0:00:34]}  Kg4 {[%clk 0:00:11]} 50. e7 {[%clk 0:00:33]}  Kxg3 {[%clk 0:00:11]} 51. Kf1 {[%clk 0:00:33]}  Kf3 {[%clk 0:00:12]} 52. Ke1 {[%clk 0:00:33]}  Re4+ {[%clk 0:00:12]} 53. Kd2 {[%clk 0:00:32]}  Rxe7 {[%clk 0:00:13]} 54. Rd7 {[%clk 0:00:31]}  Re6 {[%clk 0:00:13]} 55. c7 {[%clk 0:00:31]}  Rc6 {[%clk 0:00:14]} 56. Rxg7 {[%clk 0:00:30]}  Kxf4 {[%clk 0:00:13]} 57. Kd3 {[%clk 0:00:31]}  h5 {[%clk 0:00:12]} 58. Kd4 {[%clk 0:00:31]}  Kf3 {[%clk 0:00:12]} 59. Kd5 {[%clk 0:00:32]}  Rc1 {[%clk 0:00:12]} 60. Ke5 {[%clk 0:00:31]}  f4 {[%clk 0:00:11]} 61. Rf7 {[%clk 0:00:30]}  Rc5+ {[%clk 0:00:10]} 62. Kd6 {[%clk 0:00:30]}  Rc1 {[%clk 0:00:10]} 63. Ke5 {[%clk 0:00:30]}  Rc5+ {[%clk 0:00:09]} 64. Kd6 {[%clk 0:00:30]}  Rc2 {[%clk 0:00:09]} 65. Ke5 {[%clk 0:00:23]}  Ke3 {[%clk 0:00:08]} 66. Re7 {[%clk 0:00:18]}  f3 {[%clk 0:00:06]} 67. Kd5+ {[%clk 0:00:18]}  Kf2 {[%clk 0:00:06]} 68. Kd6 {[%clk 0:00:17]}  Kf1 {[%clk 0:00:06]} 69. Re5 {[%clk 0:00:17]}  f2 {[%clk 0:00:05]} 70. Rc5 {[%clk 0:00:17]}  Rxc5 {[%clk 0:00:06]} 71. Kxc5 {[%clk 0:00:17]}  Ke2 {[%clk 0:00:06]} 72. c8=Q {[%clk 0:00:18]}  f1=Q {[%clk 0:00:07]} 73. Qe6+ {[%clk 0:00:17]}  Kd1 {[%clk 0:00:06]} 74. Qd5+ {[%clk 0:00:16]}  Kc2 {[%clk 0:00:06]} 75. Qxh5 {[%clk 0:00:15]}  Qf2+ {[%clk 0:00:05]} 76. Kb5 {[%clk 0:00:14]}  Qd2 {[%clk 0:00:05]} 77. Qc5+ {[%clk 0:00:13]}  Kb2 {[%clk 0:00:05]} 78. Qc4 {[%clk 0:00:12]}  a4 {[%clk 0:00:02]} 79. Qxa4 {[%clk 0:00:11]}  Qc3 {[%clk 0:00:02]} 80. Qb4+ {[%clk 0:00:11]}  Qb3 {[%clk 0:00:03]} 81. Qxb3+ {[%clk 0:00:11]}  Kxb3 {[%clk 0:00:04]} 1/2-1/2


[Site "https://www.chess.com"]

[Event "Titled Tuesday Blitz April 4 Late 2023"]
[White "Koutlas, Nikolaos"]
[Black "Tsyhanchuk, Stanislav"]
[WhiteFideId "25827138"]
[BlackFideId "13505130"]
[WhiteElo "2215"]
[BlackElo "2173"]
[Result "1-0"]
[Round "09"]
[TimeControl "180+2"]
[Date "2023.04.04"]
[WhiteClock "0:00:28"]
[BlackClock "0:00:21"]

1. e4 {[%clk 0:03:00]}  c5 {[%clk 0:02:59]} 2. Nf3 {[%clk 0:02:59]}  d6 {[%clk 0:02:59]} 3. d4 {[%clk 0:02:57]}  cxd4 {[%clk 0:02:59]} 4. Nxd4 {[%clk 0:02:58]}  Nf6 {[%clk 0:02:59]} 5. Nc3 {[%clk 0:02:58]}  a6 {[%clk 0:02:59]} 6. Be2 {[%clk 0:02:57]}  e5 {[%clk 0:02:58]} 7. Nb3 {[%clk 0:02:55]}  Be6 {[%clk 0:02:58]} 8. O-O {[%clk 0:02:51]}  Nbd7 {[%clk 0:02:58]} 9. f4 {[%clk 0:02:51]}  Rc8 {[%clk 0:02:51]} 10. f5 {[%clk 0:02:48]}  Bc4 {[%clk 0:02:51]} 11. Be3 {[%clk 0:02:47]}  b5 {[%clk 0:02:49]} 12. Bxc4 {[%clk 0:02:41]}  Rxc4 {[%clk 0:02:48]} 13. Qd3 {[%clk 0:02:40]}  Be7 {[%clk 0:02:45]} 14. Rad1 {[%clk 0:02:35]}  O-O {[%clk 0:02:45]} 15. Nd2 {[%clk 0:02:31]}  Rc8 {[%clk 0:02:35]} 16. a3 {[%clk 0:02:31]}  Nc5 {[%clk 0:02:33]} 17. Qe2 {[%clk 0:02:30]}  Qc7 {[%clk 0:02:29]} 18. Bg5 {[%clk 0:02:28]}  h6 {[%clk 0:02:23]} 19. Bxf6 {[%clk 0:02:27]}  Bxf6 {[%clk 0:02:23]} 20. Nd5 {[%clk 0:02:28]}  Qd8 {[%clk 0:02:22]} 21. Nxf6+ {[%clk 0:02:23]}  Qxf6 {[%clk 0:02:22]} 22. Nb1 {[%clk 0:02:19]}  Na4 {[%clk 0:02:19]} 23. b3 {[%clk 0:02:18]}  Nc3 {[%clk 0:02:16]} 24. Nxc3 {[%clk 0:02:18]}  Rxc3 {[%clk 0:02:17]} 25. Rf3 {[%clk 0:02:17]}  Rfc8 {[%clk 0:02:12]} 26. Rxc3 {[%clk 0:02:13]}  Rxc3 {[%clk 0:02:13]} 27. Qd2 {[%clk 0:02:08]}  Rc6 {[%clk 0:02:12]} 28. Qd5 {[%clk 0:02:00]}  Rxc2 {[%clk 0:02:11]} 29. Qxd6 {[%clk 0:02:00]}  Qxd6 {[%clk 0:02:10]} 30. Rxd6 {[%clk 0:02:00]}  Rb2 {[%clk 0:02:06]} 31. b4 {[%clk 0:01:56]}  Re2 {[%clk 0:02:04]} 32. Rxa6 {[%clk 0:01:55]}  Rxe4 {[%clk 0:02:04]} 33. Rb6 {[%clk 0:01:55]}  Re1+ {[%clk 0:01:42]} 34. Kf2 {[%clk 0:01:48]}  Ra1 {[%clk 0:01:43]} 35. Rxb5 {[%clk 0:01:46]}  Ra2+ {[%clk 0:01:43]} 36. Kf1 {[%clk 0:01:43]}  Ra1+ {[%clk 0:01:42]} 37. Ke2 {[%clk 0:01:42]}  Ra2+ {[%clk 0:01:43]} 38. Kd3 {[%clk 0:01:28]}  Rxa3+ {[%clk 0:01:42]} 39. Kc4 {[%clk 0:01:28]}  f6 {[%clk 0:01:39]} 40. Rb7 {[%clk 0:01:23]}  Ra2 {[%clk 0:01:38]} 41. g4 {[%clk 0:01:20]}  Rxh2 {[%clk 0:01:38]} 42. b5 {[%clk 0:01:20]}  Rg2 {[%clk 0:01:37]} 43. b6 {[%clk 0:01:14]}  Rxg4+ {[%clk 0:01:37]} 44. Kc5 {[%clk 0:01:14]}  Rg1 {[%clk 0:01:28]} 45. Ra7 {[%clk 0:00:52]}  Rb1 {[%clk 0:01:25]} 46. b7 {[%clk 0:00:51]}  Kh7 {[%clk 0:01:23]} 47. Kc6 {[%clk 0:00:51]}  h5 {[%clk 0:01:21]} 48. Ra8 {[%clk 0:00:41]}  Kh6 {[%clk 0:01:15]} 49. b8=Q {[%clk 0:00:41]}  Rxb8 {[%clk 0:01:14]} 50. Rxb8 {[%clk 0:00:42]}  Kg5 {[%clk 0:01:14]} 51. Rg8 {[%clk 0:00:39]}  Kxf5 {[%clk 0:01:15]} 52. Rxg7 {[%clk 0:00:40]}  h4 {[%clk 0:01:03]} 53. Kd5 {[%clk 0:00:39]}  h3 {[%clk 0:01:00]} 54. Rg3 {[%clk 0:00:35]}  h2 {[%clk 0:00:50]} 55. Rh3 {[%clk 0:00:34]}  Kf4 {[%clk 0:00:48]} 56. Rxh2 {[%clk 0:00:33]}  e4 {[%clk 0:00:25]} 57. Rh4+ {[%clk 0:00:31]}  Kg3 {[%clk 0:00:20]} 58. Rxe4 {[%clk 0:00:31]}  f5 {[%clk 0:00:20]} 59. Re8 {[%clk 0:00:27]}  f4 {[%clk 0:00:20]} 60. Ke4 {[%clk 0:00:28]}  f3 {[%clk 0:00:21]} 61. Rg8+ {[%clk 0:00:28]} 1-0


[Site "https://www.chess.com"]

[Event "Titled Tuesday Blitz April 4 Late 2023"]
[White "mjelcic"]
[Black "Meunier-Pion, Jean"]
[BlackFideId "20685327"]
[WhiteElo "2241"]
[BlackElo "2124"]
[Result "0-1"]
[Round "09"]
[TimeControl "180+2"]
[Date "2023.04.04"]
[WhiteClock "0:01:42"]
[BlackClock "0:01:58"]

1. e4 {[%clk 0:03:00]}  c5 {[%clk 0:02:59]} 2. c3 {[%clk 0:03:00]}  Nf6 {[%clk 0:02:59]} 3. e5 {[%clk 0:03:00]}  Nd5 {[%clk 0:03:00]} 4. Nf3 {[%clk 0:03:01]}  Nc6 {[%clk 0:03:00]} 5. Bc4 {[%clk 0:03:01]}  Nb6 {[%clk 0:03:00]} 6. Bb3 {[%clk 0:03:02]}  c4 {[%clk 0:03:00]} 7. Bc2 {[%clk 0:03:02]}  d5 {[%clk 0:02:59]} 8. exd6 {[%clk 0:03:00]}  Qxd6 {[%clk 0:02:57]} 9. O-O {[%clk 0:03:00]}  Bg4 {[%clk 0:02:58]} 10. Re1 {[%clk 0:02:59]}  O-O-O {[%clk 0:02:56]} 11. b3 {[%clk 0:02:58]}  e5 {[%clk 0:02:51]} 12. Ba3 {[%clk 0:02:55]}  Qf6 {[%clk 0:02:51]} 13. Bxf8 {[%clk 0:02:56]}  Rhxf8 {[%clk 0:02:51]} 14. Be4 {[%clk 0:02:52]}  Qh6 {[%clk 0:02:41]} 15. Qc2 {[%clk 0:02:39]}  Rfe8 {[%clk 0:02:31]} 16. Bxc6 {[%clk 0:02:17]}  bxc6 {[%clk 0:02:30]} 17. Nxe5 {[%clk 0:01:57]}  f6 {[%clk 0:02:22]} 18. Nf3 {[%clk 0:01:54]}  Bxf3 {[%clk 0:02:16]} 19. Rxe8 {[%clk 0:01:50]}  Rxe8 {[%clk 0:02:15]} 20. gxf3 {[%clk 0:01:47]}  Re1+ {[%clk 0:02:08]} 21. Kg2 {[%clk 0:01:47]}  Qg5+ {[%clk 0:02:06]} 22. Kh3 {[%clk 0:01:47]}  Rg1 {[%clk 0:02:01]} 23. Qe4 {[%clk 0:01:42]}  Qg2+ {[%clk 0:01:58]} 0-1


[Site "https://www.chess.com"]

[Event "Titled Tuesday Blitz April 4 Late 2023"]
[White "Perske, Thore"]
[Black "Romero Ruscalleda, Josep"]
[WhiteFideId "12902195"]
[BlackFideId "2231859"]
[WhiteElo "2336"]
[BlackElo "2183"]
[Result "0-1"]
[Round "09"]
[TimeControl "180+2"]
[Date "2023.04.04"]
[WhiteClock "0:02:09"]
[BlackClock "0:02:13"]

1. d4 {[%clk 0:02:57]}  g6 {[%clk 0:02:58]} 2. g3 {[%clk 0:02:57]}  Bg7 {[%clk 0:02:57]} 3. Bg2 {[%clk 0:02:57]}  d6 {[%clk 0:02:57]} 4. e4 {[%clk 0:02:58]}  Nc6 {[%clk 0:02:56]} 5. Ne2 {[%clk 0:02:58]}  e5 {[%clk 0:02:54]} 6. Be3 {[%clk 0:02:57]}  exd4 {[%clk 0:02:52]} 7. Nxd4 {[%clk 0:02:57]}  Nge7 {[%clk 0:02:52]} 8. O-O {[%clk 0:02:56]}  O-O {[%clk 0:02:51]} 9. c4 {[%clk 0:02:55]}  Bd7 {[%clk 0:02:41]} 10. Nc3 {[%clk 0:02:54]}  f5 {[%clk 0:02:40]} 11. Nd5 {[%clk 0:02:36]}  fxe4 {[%clk 0:02:33]} 12. Bxe4 {[%clk 0:02:33]}  Nf5 {[%clk 0:02:27]} 13. Bg5 {[%clk 0:02:16]}  Qxg5 {[%clk 0:02:23]} 14. Nxc7 {[%clk 0:02:09]}  Nfxd4 {[%clk 0:02:13]} 0-1


[Site "https://www.chess.com"]

[Event "Titled Tuesday Blitz April 4 Late 2023"]
[White "Stachanczyk, Jacek"]
[Black "Gubajdullin, Alexei"]
[WhiteFideId "1116657"]
[BlackFideId "4141202"]
[WhiteElo "2084"]
[BlackElo "2279"]
[Result "0-1"]
[Round "09"]
[TimeControl "180+2"]
[Date "2023.04.04"]
[WhiteClock "0:00:17"]
[BlackClock "0:01:59"]

1. e4 {[%clk 0:02:52]}  e5 {[%clk 0:02:59]} 2. Nf3 {[%clk 0:02:52]}  Nf6 {[%clk 0:02:59]} 3. Nxe5 {[%clk 0:02:50]}  d6 {[%clk 0:03:00]} 4. Nf3 {[%clk 0:02:50]}  Nxe4 {[%clk 0:03:00]} 5. Nc3 {[%clk 0:02:51]}  Nxc3 {[%clk 0:03:00]} 6. dxc3 {[%clk 0:02:51]}  Be7 {[%clk 0:03:00]} 7. Be3 {[%clk 0:02:51]}  Nc6 {[%clk 0:03:00]} 8. Qd2 {[%clk 0:02:51]}  Be6 {[%clk 0:03:00]} 9. O-O-O {[%clk 0:02:52]}  Qd7 {[%clk 0:03:00]} 10. Kb1 {[%clk 0:02:46]}  O-O-O {[%clk 0:02:59]} 11. Nd4 {[%clk 0:02:46]}  Bd5 {[%clk 0:02:42]} 12. Nxc6 {[%clk 0:02:38]}  Bxc6 {[%clk 0:02:40]} 13. Qd4 {[%clk 0:02:38]}  b6 {[%clk 0:02:35]} 14. Qxg7 {[%clk 0:02:36]}  Qe6 {[%clk 0:02:34]} 15. Qd4 {[%clk 0:02:08]}  Rhg8 {[%clk 0:02:32]} 16. Rg1 {[%clk 0:02:02]}  Rg4 {[%clk 0:02:30]} 17. Qd2 {[%clk 0:01:56]}  f5 {[%clk 0:02:30]} 18. g3 {[%clk 0:01:53]}  Bf3 {[%clk 0:02:28]} 19. Re1 {[%clk 0:01:50]}  Qf7 {[%clk 0:02:28]} 20. Be2 {[%clk 0:01:42]}  Bxe2 {[%clk 0:02:26]} 21. Rxe2 {[%clk 0:01:43]}  Bf6 {[%clk 0:02:24]} 22. Rge1 {[%clk 0:01:40]}  Ra4 {[%clk 0:02:23]} 23. b3 {[%clk 0:01:39]}  Re4 {[%clk 0:02:22]} 24. Bd4 {[%clk 0:01:35]}  Bxd4 {[%clk 0:02:21]} 25. Rxe4 {[%clk 0:01:34]}  Bxc3 {[%clk 0:02:21]} 26. Qxc3 {[%clk 0:01:03]}  fxe4 {[%clk 0:02:21]} 27. Rxe4 {[%clk 0:00:55]}  Qxf2 {[%clk 0:02:19]} 28. Re7 {[%clk 0:00:40]}  Rd7 {[%clk 0:02:16]} 29. Qh8+ {[%clk 0:00:40]}  Rd8 {[%clk 0:02:15]} 30. Qg7 {[%clk 0:00:33]}  Qc5 {[%clk 0:02:10]} 31. a4 {[%clk 0:00:23]}  d5 {[%clk 0:02:09]} 32. Qxh7 {[%clk 0:00:21]}  d4 {[%clk 0:02:08]} 33. Qh3+ {[%clk 0:00:19]}  Kb8 {[%clk 0:02:07]} 34. Qh4 {[%clk 0:00:18]}  d3 {[%clk 0:02:05]} 35. Re2 {[%clk 0:00:17]}  dxe2 {[%clk 0:02:00]} 36. Qxd8+ {[%clk 0:00:17]}  Kb7 {[%clk 0:01:59]} 0-1


[Site "https://www.chess.com"]

[Event "Titled Tuesday Blitz April 4 Late 2023"]
[White "Schuster, Karsten"]
[Black "Goffredo_Fofi"]
[WhiteFideId "4611071"]
[WhiteElo "2294"]
[BlackElo "2493"]
[Result "0-1"]
[Round "09"]
[TimeControl "180+2"]
[Date "2023.04.04"]
[WhiteClock "0:00:06"]
[BlackClock "0:00:03"]

1. d4 {[%clk 0:02:49]}  Nf6 {[%clk 0:02:57]} 2. Bg5 {[%clk 0:02:48]}  d5 {[%clk 0:02:57]} 3. Bxf6 {[%clk 0:02:47]}  exf6 {[%clk 0:02:57]} 4. Nf3 {[%clk 0:02:45]}  Bd6 {[%clk 0:02:55]} 5. e3 {[%clk 0:02:45]}  c6 {[%clk 0:02:54]} 6. c4 {[%clk 0:02:45]}  dxc4 {[%clk 0:02:54]} 7. Bxc4 {[%clk 0:02:44]}  f5 {[%clk 0:02:54]} 8. g3 {[%clk 0:02:43]}  Nd7 {[%clk 0:02:53]} 9. O-O {[%clk 0:02:42]}  O-O {[%clk 0:02:51]} 10. Nc3 {[%clk 0:02:41]}  Nf6 {[%clk 0:02:50]} 11. Re1 {[%clk 0:02:40]}  Qe7 {[%clk 0:02:34]} 12. Rc1 {[%clk 0:02:37]}  Ne4 {[%clk 0:02:31]} 13. Bf1 {[%clk 0:02:33]}  Bb4 {[%clk 0:02:02]} 14. Bg2 {[%clk 0:02:27]}  Be6 {[%clk 0:02:01]} 15. Qa4 {[%clk 0:02:21]}  a5 {[%clk 0:01:50]} 16. Ne5 {[%clk 0:02:14]}  h5 {[%clk 0:01:24]} 17. h4 {[%clk 0:02:10]}  g5 {[%clk 0:01:17]} 18. hxg5 {[%clk 0:02:09]}  Qxg5 {[%clk 0:01:18]} 19. Bxe4 {[%clk 0:02:03]}  Bxc3 {[%clk 0:01:08]} 20. Rxc3 {[%clk 0:01:50]}  fxe4 {[%clk 0:01:08]} 21. Qd1 {[%clk 0:01:40]}  Kg7 {[%clk 0:01:02]} 22. Rc5 {[%clk 0:01:39]}  Bd5 {[%clk 0:00:48]} 23. Kf1 {[%clk 0:01:24]}  Rh8 {[%clk 0:00:41]} 24. b3 {[%clk 0:01:22]}  Qf5 {[%clk 0:00:34]} 25. g4 {[%clk 0:01:10]}  Qg5 {[%clk 0:00:20]} 26. Ke2 {[%clk 0:00:45]}  hxg4 {[%clk 0:00:19]} 27. Rg1 {[%clk 0:00:30]}  f5 {[%clk 0:00:19]} 28. Rg2 {[%clk 0:00:24]}  Rh3 {[%clk 0:00:18]} 29. Qg1 {[%clk 0:00:23]}  a4 {[%clk 0:00:16]} 30. Nxg4 {[%clk 0:00:23]}  Kf8 {[%clk 0:00:15]} 31. Ne5 {[%clk 0:00:22]}  Qh5+ {[%clk 0:00:15]} 32. Kd2 {[%clk 0:00:21]}  axb3 {[%clk 0:00:15]} 33. axb3 {[%clk 0:00:21]}  Ra2+ {[%clk 0:00:15]} 34. Rc2 {[%clk 0:00:20]}  Rxc2+ {[%clk 0:00:15]} 35. Kxc2 {[%clk 0:00:20]}  Qe2+ {[%clk 0:00:15]} 36. Kc3 {[%clk 0:00:20]}  Qb5 {[%clk 0:00:14]} 37. Rg5 {[%clk 0:00:19]}  Qxb3+ {[%clk 0:00:14]} 38. Kd2 {[%clk 0:00:19]}  Qb2+ {[%clk 0:00:14]} 39. Ke1 {[%clk 0:00:16]}  Qc1+ {[%clk 0:00:12]} 40. Ke2 {[%clk 0:00:16]}  Qc2+ {[%clk 0:00:07]} 41. Kf1 {[%clk 0:00:14]}  Be6 {[%clk 0:00:06]} 42. Kg2 {[%clk 0:00:13]}  Rh7 {[%clk 0:00:05]} 43. Rg6 {[%clk 0:00:13]}  Bf7 {[%clk 0:00:03]} 44. Nxf7 {[%clk 0:00:12]}  Kxf7 {[%clk 0:00:04]} 45. Rg5 {[%clk 0:00:12]}  Qc4 {[%clk 0:00:03]} 46. Kg3 {[%clk 0:00:11]}  Qe6 {[%clk 0:00:03]} 47. Kf4 {[%clk 0:00:07]}  Ke7 {[%clk 0:00:02]} 48. Rxf5 {[%clk 0:00:07]}  Rh4+ {[%clk 0:00:02]} 49. Kg5 {[%clk 0:00:06]}  Qh6# {[%clk 0:00:03]} 0-1


[Site "https://www.chess.com"]